fUST/lending_fUST_20240804
["ID","MTS","AMOUNT","RATE_DAILY","PERIOD"]
[334075568,1722736036046,-21341.1408931,0.00014971,2]
[334075569,1722736036070,-1071.15,0.0001498,2]
[334075570,1722736036094,-1457.92,0.0001498,2]
[334075571,1722736036118,-500.0,0.0001498,2]
[334075572,1722736036139,-500.0,0.0001498,2]
[334075573,1722736036161,-935.52,0.0001498,2]
[334075574,1722736036182,-500.0,0.0001498,2]
[334075575,1722736036203,-500.0,0.0001498,2]
[334075576,1722736036224,-500.0,0.0001498,2]
[334075577,1722736036245,-26079.07943607,0.00014981,2]
[334075578,1722736036266,-500.0,0.00014981,2]
[334075579,1722736036287,-500.0,0.00014981,2]
[334075580,1722736036308,-500.0,0.00014981,2]
[334075581,1722736036347,-500.0,0.00014981,2]
[334075582,1722736036377,-500.0,0.00014981,2]
[334075583,1722736036402,-1586.98,0.00014981,2]
[334075584,1722736036431,-500.0,0.00014981,2]
[334075585,1722736036457,-636.03,0.00014981,2]
[334075586,1722736036483,-500.0,0.00014981,2]
[334075587,1722736036508,-500.0,0.00014981,2]
[334075588,1722736036531,-500.0,0.00014981,2]
[334075589,1722736036554,-500.0,0.00014981,2]
[334075590,1722736036577,-500.0,0.00014981,2]
[334075591,1722736036601,-1032.05,0.00014981,2]
[334075592,1722736036627,-500.0,0.00014981,2]
[334075593,1722736036650,-500.0,0.00014981,2]
[334075594,1722736036673,-1367.03,0.00014981,2]
[334075595,1722736036695,-500.0,0.00014981,2]
[334075596,1722736036718,-500.0,0.00014982,2]
[334075597,1722736036742,-500.0,0.00014982,2]
[334075598,1722736036765,-500.0,0.00014982,2]
[334075599,1722736036788,-500.0,0.00014982,2]
[334075600,1722736036810,-811.65,0.00014982,2]
[334075601,1722736036832,-5027.81190528,0.00015,5]
[334075602,1722736036855,-2848.0272935,0.00015,2]
[334075603,1722736036882,-1108.72341291,0.00015,2]
[334075604,1722736036906,-951.65187642,0.00015,2]
[334075605,1722736036929,-154.72922386,0.00015,2]
[334075606,1722736036951,-459.65038958,0.00015,4]
[334075607,1722736036975,-620.00123035,0.00015039,2]
[334075608,1722736036999,-325.08492617,0.00015063,2]
[334075609,1722736037021,-500.0,0.00015181,2]
[334075610,1722736037044,-166.50878591,0.00015181,2]
[334075611,1722736037066,-500.0,0.00015181,2]
[334075612,1722736037089,-153.7810249,0.00015198,2]
[334075613,1722736037116,-153.0,0.00015198,2]
[334075614,1722736037139,-153.0,0.00015198,2]
[334075615,1722736037162,-153.0,0.00015198,2]
[334075616,1722736037186,-150.112233,0.000152,2]
[334075617,1722736037212,-21341.1408931,0.00015215,2]
[334075618,1722736037235,-500.0,0.00015223,2]
[334075619,1722736037258,-500.0,0.00015223,2]
[334075620,1722736037283,-500.0,0.00015223,2]
[334075621,1722736037309,-500.0,0.00015223,2]
[334075622,1722736037337,-500.0,0.00015223,2]
[334075623,1722736037361,-435.32465701,0.00015223,2]
[334075624,1722736037386,-500.0,0.00015223,2]
[334075625,1722736037408,-500.0,0.00015223,2]
[334075626,1722736037435,-500.0,0.00015223,2]
[334075627,1722736037575,-500.0,0.00015223,2]
[334075628,1722736037601,-500.0,0.00015223,2]
[334075629,1722736037630,-500.0,0.00015223,2]
[334075630,1722736037653,-500.0,0.00015223,2]
[334075631,1722736037677,-500.0,0.00015223,2]
[334075632,1722736037701,-269.49264996,0.00015223,2]
[334075633,1722736037724,-500.0,0.00015223,2]
[334075634,1722736037747,-500.0,0.00015223,2]
[334075635,1722736037770,-500.0,0.00015223,2]
[334075636,1722736037793,-500.0,0.00015223,2]
[334075637,1722736037815,-306.94193147,0.00015223,2]
[334075638,1722736037838,-500.0,0.00015223,2]
[334075639,1722736037862,-500.0,0.00015223,2]
[334075640,1722736037886,-500.0,0.00015223,2]
[334075641,1722736037909,-500.0,0.00015223,2]
[334075642,1722736037933,-500.0,0.00015223,2]
[334075643,1722736037957,-500.0,0.00015223,2]
[334075644,1722736037979,-500.0,0.00015223,2]
[334075645,1722736038002,-500.0,0.00015223,2]
[334075646,1722736038030,-500.0,0.00015223,2]
[334075647,1722736038054,-500.0,0.00015223,2]
[334075648,1722736038082,-151.0,0.00015224,2]
[334075649,1722736038105,-151.0,0.00015224,2]
[334075650,1722736038130,-151.0,0.00015226,2]
[334075651,1722736038154,-265.477233,0.00015226,2]
[334075652,1722736038179,-1071.15,0.00015236,2]
[334075653,1722736038202,-151.0,0.00015238,2]
[334075654,1722736038225,-325.08492617,0.00015245,2]
[334075655,1722736038248,-21341.1408931,0.00015246,2]
[334075656,1722736038271,-1457.92,0.00015254,2]
[334075657,1722736038298,-500.0,0.00015254,2]
[334075658,1722736038321,-500.0,0.00015254,2]
[334075659,1722736038349,-935.52,0.00015254,2]
[334075660,1722736038374,-500.0,0.00015254,2]
[334075661,1722736038397,-500.0,0.00015254,2]
[334075662,1722736038431,-500.0,0.00015254,2]
[334075663,1722736038457,-500.0,0.00015255,2]
[334075664,1722736038479,-500.0,0.00015255,2]
[334075665,1722736038502,-500.0,0.00015255,2]
[334075666,1722736038524,-500.0,0.00015255,2]
[334075667,1722736038545,-151.0,0.00015255,2]
[334075668,1722736038567,-500.0,0.00015255,2]
[334075669,1722736038589,-211.86396,0.00015255,2]
[334075670,1722736038614,-1071.15,0.00015255,2]
[334075671,1722736038643,-1586.98,0.00015255,2]
[334075672,1722736038665,-500.0,0.00015255,2]
[334075673,1722736038687,-636.03,0.00015255,2]
[334075674,1722736038710,-500.0,0.00015255,2]
[334075675,1722736038735,-500.0,0.00015255,2]
[334075676,1722736038757,-500.0,0.00015255,2]
[334075677,1722736038779,-500.0,0.00015255,2]
[334075678,1722736038802,-500.0,0.00015255,2]
[334075679,1722736038825,-1032.05,0.00015255,2]
[334075680,1722736038847,-151.0,0.00015255,2]
[334075681,1722736038871,-166.208305,0.00015255,2]
[334075682,1722736038895,-500.0,0.00015255,2]
[334075683,1722736038918,-151.0,0.00015255,2]
[334075684,1722736038940,-151.0,0.00015255,2]
[334075685,1722736038966,-151.0,0.00015255,2]
[334075686,1722736038990,-500.0,0.00015255,2]
[334075687,1722736039014,-1367.03,0.00015255,2]
[334075688,1722736039041,-500.0,0.00015255,2]
[334075689,1722736039066,-157.61398342,0.00015256,2]
[334075690,1722736039090,-500.0,0.00015256,2]
[334075691,1722736039113,-500.0,0.00015256,2]
[334075692,1722736039135,-500.0,0.00015256,2]
[334075693,1722736039161,-811.65,0.00015256,2]
[334075694,1722736039185,-151.0,0.00015256,2]
[334075695,1722736039208,-151.0,0.00015256,2]
[334075696,1722736039231,-157.4087851,0.00015256,2]
[334075697,1722736039252,-151.0,0.00015293,2]
[334075698,1722736039276,-1071.15,0.00015299,2]
[334075699,1722736039299,-1383.59055274,0.000153,2]
[334075700,1722736039424,-2169.34926816,0.000153,2]
[334075702,1722736220733,535.5,0.00025,60]
[334075739,1722736233109,-1411.0,0.00014437,2]
[334075740,1722736233120,-500.0,0.00014706,2]
[334075741,1722736233130,-957.52466684,0.00014706,2]
[334075742,1722736233142,-431.08533316,0.00014706,2]
[334075744,1722736233151,-500.0,0.00014706,2]
[334075745,1722736233162,-556.52,0.00014706,2]
[334075746,1722736233171,-500.0,0.00014706,2]
[334075747,1722736233181,-1275.68,0.00014706,2]
[334075748,1722736233190,-500.0,0.00014706,2]
[334075749,1722736233199,-495.13150293,0.00014706,2]
[334075750,1722736233209,-903.04,0.00014706,2]
[334075751,1722736233219,-500.0,0.00014706,2]
[334075752,1722736233229,-818.58,0.00014706,2]
[334075753,1722736233240,-803.36,0.00014707,2]
[334075754,1722736233249,-464.12093888,0.00014707,2]
[334075755,1722736233261,-35.87906112,0.00014707,2]
[334075756,1722736233270,-478.58824819,0.00014707,2]
[334075757,1722736233280,-91.41051715,0.00014707,2]
[334075776,1722736238340,-373.96260087,0.00014707,2]
[334075777,1722736238351,-500.0,0.00014707,2]
[334075778,1722736238363,-500.0,0.00014707,2]
[334075779,1722736238374,-1196.15,0.00014707,2]
[334075780,1722736238384,-803.36,0.0001497,2]
[334075781,1722736238394,-500.0,0.0001498,2]
[334075782,1722736238403,-803.36,0.0001498,2]
[334075783,1722736238414,-1388.61,0.0001498,2]
[334075784,1722736238429,-500.0,0.0001498,2]
[334075785,1722736238442,-556.52,0.0001498,2]
[334075786,1722736238451,-500.0,0.0001498,2]
[334075787,1722736238464,-1275.68,0.0001498,2]
[334075788,1722736238476,-500.0,0.0001498,2]
[334075789,1722736238488,-903.04,0.0001498,2]
[334075790,1722736238499,-500.0,0.0001498,2]
[334075791,1722736238509,-818.58,0.0001498,2]
[334075792,1722736238519,-500.0,0.00014981,2]
[334075793,1722736238530,-500.0,0.00014981,2]
[334075794,1722736238540,-500.0,0.00014981,2]
[334075795,1722736238551,-1196.15,0.00014981,2]
[334075796,1722736238563,-803.36,0.00015225,2]
[334075797,1722736238575,-500.0,0.00015254,2]
[334075798,1722736238586,-151.0,0.00015254,2]
[334075799,1722736238596,-157.4087851,0.00015254,2]
[334075800,1722736238607,-151.0,0.00015254,2]
[334075801,1722736238617,-1388.61,0.00015254,2]
[334075802,1722736238627,-500.0,0.00015254,2]
[334075803,1722736238636,-556.52,0.00015254,2]
[334075804,1722736238645,-500.0,0.00015254,2]
[334075805,1722736238655,-1275.68,0.00015254,2]
[334075806,1722736238665,-500.0,0.00015254,2]
[334075807,1722736238675,-903.04,0.00015254,2]
[334075808,1722736238686,-500.0,0.00015254,2]
[334075809,1722736238695,-818.58,0.00015254,2]
[334075810,1722736238706,-661.6144396,0.00015255,2]
[334075812,1722736240765,-141.7455604,0.00015255,2]
[334075813,1722736240775,-500.0,0.00015255,2]
[334075814,1722736240785,-500.0,0.00015255,2]
[334075815,1722736240794,-500.0,0.00015255,2]
[334075816,1722736240804,-1196.15,0.00015255,2]
[334075817,1722736240814,-6447.0601791,0.000153,2]
[334075818,1722736240823,-3608.62140677,0.000153,2]
[334075819,1722736240833,-2755.30006155,0.000153,2]
[334075820,1722736240842,-154.79497275,0.000153,2]
[334075821,1722736240852,-1259.0,0.00015378,7]
[334075822,1722736240862,-4767.93061955,0.0001541,2]
[334075823,1722736240871,-325.08492617,0.00015426,2]
[334075824,1722736240881,-3132.60666604,0.00015428,2]
[334075825,1722736240891,-500.0,0.00015455,2]
[334075826,1722736240901,-500.0,0.00015455,2]
[334075827,1722736240911,-276.33923539,0.00015456,2]
[334075828,1722736240921,-803.36,0.00015489,2]
[334075829,1722736240932,-4464.92782967,0.000155,2]
[334075830,1722736240942,-151.0,0.00015519,2]
[334075831,1722736240953,-151.0,0.00015519,2]
[334075832,1722736240963,-151.0,0.00015519,2]
[334075833,1722736240973,-151.0,0.00015519,2]
[334075834,1722736240982,-151.0,0.00015519,2]
[334075835,1722736240992,-500.0,0.00015528,2]
[334075836,1722736241002,-500.0,0.00015528,2]
[334075837,1722736241013,-248.75743727,0.00015528,2]
[334075838,1722736241023,-500.0,0.00015528,2]
[334075839,1722736241043,-500.0,0.00015528,2]
[334075840,1722736241058,-1388.61,0.00015528,2]
[334075841,1722736241067,-500.0,0.00015528,2]
[334075842,1722736241076,-556.52,0.00015528,2]
[334075843,1722736241085,-500.0,0.00015528,2]
[334075844,1722736241094,-1275.68,0.00015528,2]
[334075845,1722736241103,-500.0,0.00015528,2]
[334075846,1722736241113,-903.04,0.00015528,2]
[334075847,1722736241121,-500.0,0.00015528,2]
[334075848,1722736241131,-818.58,0.00015528,2]
[334075849,1722736241140,-500.0,0.00015529,2]
[334075850,1722736241148,-500.0,0.00015529,2]
[334075851,1722736241157,-500.0,0.00015529,2]
[334075852,1722736241166,-500.0,0.00015529,2]
[334075853,1722736241176,-500.0,0.00015529,2]
[334075854,1722736241185,-500.0,0.00015529,2]
[334075855,1722736241194,-500.0,0.00015529,2]
[334075856,1722736241203,-334.15805604,0.00015529,2]
[334075857,1722736241211,-500.0,0.00015529,2]
[334075858,1722736241221,-1196.15,0.00015529,2]
[334075859,1722736241230,-500.0,0.0001553,2]
[334075860,1722736241240,-212.73295292,0.0001553,2]
[334075861,1722736241252,-549.45558689,0.0001553,2]
[334075862,1722736241262,-49.46146019,0.0001553,2]
[334075863,1722736241272,-325.08492617,0.00015608,2]
[334075864,1722736241281,-803.36,0.00015611,2]
[334075865,1722736241289,-28.95827262,0.00015688,2]
[334075866,1722736241306,-122.04172738,0.00015688,2]
[334075867,1722736241315,-151.0,0.00015688,2]
[334075868,1722736241325,-151.0,0.00015688,2]
[334075869,1722736241334,-151.0,0.00015688,2]
[334075870,1722736241343,-174.205266,0.00015688,2]
[334075871,1722736241353,-803.36,0.00015697,2]
[334075872,1722736241362,-34424.15657432,0.00015698,2]
[334075897,1722736243426,-299.8633428,0.00015698,2]
[334075898,1722736243439,-1555.91960118,0.00015698,2]
[334075899,1722736243451,-151.0,0.00015698,2]
[334075900,1722736243462,-151.0,0.00015698,2]
[334075901,1722736243473,-151.0,0.00015698,2]
[334075902,1722736243483,-151.0,0.00015698,2]
[334075903,1722736243494,-803.36,0.00015706,2]
[334075904,1722736243505,-803.36,0.00015707,2]
[334075905,1722736243516,-329.65341636,0.00015707,2]
[334075906,1722736243528,-473.70658364,0.00015707,2]
[334075907,1722736243539,-367.43799239,0.00015707,2]
[334075908,1722736243556,-158.79719757,0.00015707,2]
[334075909,1722736243739,-341.20280243,0.00015707,2]
[334075910,1722736243749,-597.58738909,0.00015707,2]
[334075911,1722736243764,-43.4673498,0.00015707,2]
[334075912,1722736243775,-9476.50120932,0.00015708,2]
[334075913,1722736243793,-11280.11821825,0.00015708,2]
[334075914,1722736243809,-9641.35663477,0.00015708,2]
[334075915,1722736243819,-7000.68973624,0.00015708,2]
[334075916,1722736243828,-2124.22844033,0.00015708,2]
[334075917,1722736243837,-1162.60351639,0.00015708,2]
[334075918,1722736243847,-3444.07018925,0.00015708,2]
[334075919,1722736243856,-5925.62349647,0.00015708,2]
[334075920,1722736243866,-2162.2903099,0.00015708,2]
[334075921,1722736243876,-2138.84815515,0.00015708,2]
[334075922,1722736243886,-1991.37347386,0.00015708,2]
[334075923,1722736243895,-1500.0,0.00015708,2]
[334075924,1722736243905,-2277.87309117,0.00015708,3]
[334075925,1722736243915,-2760.25869518,0.00015708,2]
[334075926,1722736243924,-7773.90428076,0.00015708,2]
[334075927,1722736243933,-1763.21721545,0.00015708,2]
[334075928,1722736243943,-1610.46200292,0.00015708,2]
[334075929,1722736243954,-1382.73887136,0.00015708,2]
[334075930,1722736243964,-492.373335,0.00015708,2]
[334075931,1722736243975,-3153.55941682,0.00015708,7]
[334075932,1722736243984,-151.0,0.00015708,2]
[334075933,1722736243993,-151.0,0.00015708,2]
[334075934,1722736244002,-151.0,0.00015708,2]
[334075935,1722736244012,-151.0,0.00015708,2]
[334075936,1722736244021,-151.0,0.00015708,2]
[334075938,1722736244030,-151.0,0.00015708,2]
[334075939,1722736244039,-151.0,0.00015708,2]
[334075941,1722736244055,-151.0,0.00015708,2]
[334075943,1722736244064,-803.36,0.00015708,2]
[334075945,1722736244074,-185.60927,0.00015708,2]
[334075946,1722736244084,-151.0,0.00015708,2]
[334075947,1722736244093,-28072.93797963,0.00015709,2]
[334075973,1722736246323,-500.0,0.00014706,2]
[334075975,1722736246335,-221.219865,0.00014706,2]
[334075977,1722736246348,-278.780135,0.00014706,2]
[334075979,1722736246360,-609.44674691,0.0001498,2]
[334075982,1722736246371,-500.0,0.0001498,2]
[334075984,1722736246383,-500.0,0.00015254,2]
[334075986,1722736246392,-370.62276143,0.00015528,2]
[334075987,1722736246404,-129.37723857,0.00015528,2]
[334075988,1722736246414,-6935.37386155,0.00015709,2]
[334075989,1722736246428,-151.0,0.00015709,2]
[334075990,1722736246578,-151.0,0.00015709,2]
[334075991,1722736246589,-166.511117,0.00015709,2]
[334075992,1722736246600,-151.0,0.00015709,2]
[334075993,1722736246611,-500.0,0.00015729,2]
[334075994,1722736246621,-500.0,0.00015729,2]
[334075995,1722736246631,-486.53269021,0.00015744,2]
[334075996,1722736246643,-620.00006152,0.00015791,2]
[334075997,1722736246655,-151.0,0.00015793,2]
[334075998,1722736246667,-151.0,0.00015793,2]
[334075999,1722736246678,-8625.62663043,0.00015793,2]
[334076000,1722736246745,-313.53912706,0.00015793,2]
[334076001,1722736246758,-627.65767805,0.00015793,2]
[334076002,1722736246771,-2740.68748991,0.00015793,2]
[334076003,1722736246785,-1614.5336508,0.00015793,2]
[334076006,1722736907971,1834.2840049,0.00027,120]
[334076010,1722737153109,-300.99621399,9.999e-05,2]
[334076011,1722737153131,-417.53482764,9.999e-05,2]
[334076012,1722737153155,-163.81022,0.00012986,2]
[334076013,1722737153178,-160.917038,0.00013662,2]
[334076014,1722737153201,-286.79591075,0.00013679,2]
[334076015,1722737234103,-300.0,0.00013678,2]
[334076016,1722737234125,-1926.0936251,0.00013679,2]
[334076017,1722737236099,-2348.72185919,0.00013679,2]
[334076018,1722737241090,-830.40310691,0.00013679,2]
[334076019,1722737241115,-309.73672378,0.00013679,2]
[334076020,1722737241142,-100.03797599,0.00013679,2]
[334076021,1722737242091,-237.06303926,0.00013679,2]
[334076040,1722737432272,-260.96909547,0.00013678,2]
[334076045,1722737432411,-32.03090453,0.00013678,2]
[334076046,1722737432420,-668.86567835,0.00013679,2]
[334076052,1722737438514,-2265.22061071,0.00013679,2]
[334076053,1722737438742,-337.43410246,0.00013679,2]
[334076054,1722737438752,-1050.73795406,0.00013679,2]
[334076055,1722737438762,-1051.99492059,0.00013679,2]
[334076056,1722737438774,-3715.05419339,0.00013679,2]
[334076057,1722737439199,-541.82038573,0.00013679,2]
[334076058,1722737439210,-2127.76355908,0.00013679,2]
[334076059,1722737439220,-4800.5475255,0.00013749,2]
[334076060,1722737439231,-593.6146244,0.0001375,2]
[334076061,1722737439241,-160.917038,0.00013805,2]
[334076062,1722737439251,-160.917038,0.00013947,2]
[334076063,1722737439260,-160.917038,0.00014089,2]
[334076064,1722737439270,-160.917038,0.00014232,2]
[334076065,1722737439280,-676.875,0.00014247,2]
[334076066,1722737439289,-469.936966,0.00014247,2]
[334076067,1722737439298,-1411.0,0.00014284,2]
[334076068,1722737439307,-160.917038,0.00014374,2]
[334076069,1722737439317,-150.039,0.00014487,2]
[334076070,1722737439326,-480.77130662,0.00014706,2]
[334076071,1722737439335,-294.2310959,0.0001521,2]
[334076072,1722737439345,-500.0,0.00015299,2]
[334076073,1722737439354,-500.0,0.00015299,2]
[334076074,1722737439364,-512.76362652,0.00015427,2]
[334076075,1722737439373,-500.0,0.00015427,2]
[334076076,1722737439383,-500.0,0.00015427,2]
[334076077,1722737439392,-500.0,0.00015427,2]
[334076078,1722737439403,-500.0,0.00015427,2]
[334076079,1722737439412,-500.0,0.00015427,2]
[334076080,1722737439422,-604.44910194,0.00015427,2]
[334076081,1722737439432,-248.26998719,0.00015427,2]
[334076082,1722737439441,-500.0,0.00015427,2]
[334076083,1722737439450,-505.3206066,0.00015427,2]
[334076084,1722737439460,-510.06548364,0.00015427,2]
[334076085,1722737439472,-505.05221021,0.00015427,2]
[334076086,1722737439483,-507.97873901,0.00015427,2]
[334076087,1722737439494,-505.82693914,0.00015427,2]
[334076088,1722737439504,-514.61451898,0.00015427,2]
[334076089,1722737439516,-201.32649591,0.00015427,2]
[334076090,1722737439526,-507.82894831,0.00015427,2]
[334076091,1722737439535,-500.0,0.00015427,2]
[334076092,1722737439544,-500.0,0.00015427,2]
[334076093,1722737439556,-500.0,0.00015427,2]
[334076094,1722737439567,-996.79,0.00015427,2]
[334076095,1722737439576,-500.0,0.00015438,2]
[334076096,1722737439586,-4767.93061955,0.00015469,2]
[334076097,1722737439596,-507.0719872,0.00015472,2]
[334076098,1722737439605,-500.0,0.00015472,2]
[334076099,1722737439614,-500.0,0.00015472,2]
[334076100,1722737439624,-500.0,0.00015472,2]
[334076101,1722737439633,-500.0,0.00015527,2]
[334076102,1722737439643,-500.0,0.00015527,2]
[334076103,1722737439654,-1157.17,0.00015527,2]
[334076104,1722737439664,-500.0,0.00015527,2]
[334076105,1722737439675,-500.0,0.00015527,2]
[334076106,1722737439686,-752.53,0.00015527,2]
[334076107,1722737439696,-500.0,0.00015573,2]
[334076108,1722737439705,-500.0,0.00015573,2]
[334076109,1722737439715,-503.61900493,0.00015601,2]
[334076110,1722737439724,-153.0,0.00015686,2]
[334076111,1722737439733,-1063.07,0.000157,2]
[334076112,1722737439742,-682.15,0.000157,2]
[334076113,1722737439753,-500.0,0.000157,2]
[334076114,1722737439762,-500.0,0.00015701,2]
[334076115,1722737439771,-500.0,0.00015701,2]
[334076116,1722737439780,-500.0,0.00015701,2]
[334076117,1722737439790,-500.0,0.00015701,2]
[334076118,1722737439799,-500.0,0.00015701,2]
[334076119,1722737439808,-500.0,0.00015701,2]
[334076120,1722737439818,-500.0,0.00015701,2]
[334076121,1722737439831,-502.98669334,0.00015701,2]
[334076122,1722737439840,-996.79,0.00015701,2]
[334076123,1722737439850,-500.0,0.00015711,2]
[334076125,1722737439859,-509.5902212,0.00015712,2]
[334076126,1722737439869,-2848.36326452,0.00015712,2]
[334076127,1722737439878,-500.0,0.00015746,2]
[334076128,1722737439887,-500.0,0.00015746,2]
[334076129,1722737439899,-18635.95817581,0.00015746,2]
[334076130,1722737439912,-7849.90365254,0.00015746,2]
[334076131,1722737439924,-15852.74297057,0.00015746,2]
[334076132,1722737439933,-369.92102059,0.00015746,2]
[334076159,1722737440700,-312.2633,0.00015746,2]
[334076161,1722737440712,-275.9270822,0.00015746,2]
[334076175,1722737443362,-150.65694073,0.00015746,2]
[334076177,1722737443371,-198.23562499,0.00015746,2]
[334076180,1722737443383,-301.76437501,0.00015746,2]
[334076182,1722737443392,-459.69835721,0.00015751,4]
[334076184,1722737443404,-355.74470206,0.00015751,2]
[334076217,1722737782551,155.0,9.1e-05,2]
[334076218,1722737787089,155.0,9.1e-05,2]
[334076219,1722737792343,155.0,9.1e-05,2]
[334076220,1722737796897,155.0,9.1e-05,2]
[334076221,1722737801982,155.0,9.1e-05,2]
[334076222,1722737806534,155.0,9.1e-05,2]
[334076223,1722737811003,155.0,9.1e-05,2]
[334076224,1722737815791,155.0,9.1e-05,2]
[334076225,1722737820255,155.0,9.1e-05,2]
[334076226,1722737825075,228.97894413,9.1e-05,2]
[334076227,1722737907641,3608.62140677,9.1e-05,2]
[334076228,1722738007543,1767.3996491,9.1e-05,2]
[334076238,1722738443132,-608.04864424,9.1e-05,2]
[334076239,1722738446086,-199.22301783,9.1e-05,2]
[334076240,1722738450133,-316.51618548,9.1e-05,2]
[334076241,1722738450159,-300.99621399,9.999e-05,2]
[334076242,1722738450182,-154.97000724,9.999e-05,2]
[334076243,1722738450206,-157.488887,9.999e-05,2]
[334076244,1722738450229,-155.05020027,0.0001,2]
[334076245,1722738450251,-163.515662,0.00012986,2]
[334076246,1722738450272,-197.66635136,0.00014247,2]
[334076250,1722738564107,-152.90155634,9.9e-05,2]
[334076251,1722738564134,-300.99621399,0.0001103,2]
[334076325,1722738638777,-635.535105,0.00013686,2]
[334076327,1722738638787,-108.464895,0.000138,2]
[334076329,1722738639226,-1002.49822843,0.000138,2]
[334076332,1722738639239,-21483.48582576,0.000138,2]
[334076333,1722738639251,-750.0,0.00014247,2]
[334076335,1722738639261,-1411.0,0.00014491,2]
[334076336,1722738639271,-286.60806988,0.0001469,2]
[334076337,1722738639281,-194.5599409,0.0001469,2]
[334076338,1722738639291,-1108.76834352,0.00015,2]
[334076339,1722738639301,-951.69950854,0.00015,2]
[334076340,1722738639310,-588.2238741,0.00015068,2]
[334076341,1722738639320,-500.0,0.00015471,2]
[334076342,1722738639330,-500.0,0.00015471,2]
[334076343,1722738639339,-1000.0,0.00015478,2]
[334076344,1722738639349,-335.74600328,0.00015479,2]
[334076345,1722738639358,-1052.3953929,0.00015484,2]
[334076346,1722738639367,-1000.0,0.00015511,2]
[334076347,1722738639378,-1000.0,0.00015513,2]
[334076348,1722738639387,-1000.0,0.00015514,2]
[334076349,1722738639398,-205.41726746,0.00015544,2]
[334076350,1722738639410,-130.32873581,0.00015544,2]
[334076351,1722738639420,-933.7873109,0.00015549,2]
[334076391,1722738640824,-3834.14330866,0.00015549,2]
[334076392,1722738640835,-1000.0,0.0001555,2]
[334076393,1722738640844,-1000.0,0.00015552,2]
[334076394,1722738640854,-300.26730441,0.00015557,2]
[334076395,1722738640863,-367.80729453,0.00015558,2]
[334076396,1722738640873,-1000.0,0.00015575,2]
[334076397,1722738640883,-500.0,0.00015579,2]
[334076398,1722738640893,-500.0,0.00015579,2]
[334076399,1722738640903,-500.0,0.00015579,2]
[334076400,1722738640913,-500.0,0.00015579,2]
[334076401,1722738640923,-1108.96,0.00015579,2]
[334076402,1722738640933,-500.0,0.00015579,2]
[334076403,1722738640944,-500.0,0.00015579,2]
[334076404,1722738640954,-500.0,0.00015579,2]
[334076405,1722738640965,-500.0,0.00015579,2]
[334076406,1722738640975,-721.18,0.00015579,2]
[334076407,1722738640984,-10005.21212725,0.0001558,2]
[334076408,1722738640994,-1000.0,0.0001558,2]
[334076409,1722738641004,-1000.0,0.00015585,2]
[334076410,1722738641014,-500.0,0.00015589,2]
[334076411,1722738641024,-500.0,0.00015589,2]
[334076412,1722738641034,-382.81286565,0.00015589,2]
[334076413,1722738641044,-1018.77,0.00015598,2]
[334076414,1722738641054,-653.73,0.00015598,2]
[334076415,1722738641064,-1000.0,0.00015607,2]
[334076416,1722738641075,-335.74600327,0.00015609,2]
[334076417,1722738641084,-1000.0,0.00015612,2]
[334076418,1722738641094,-1000.0,0.0001563,2]
[334076419,1722738641103,-1000.0,0.00015635,2]
[334076420,1722738641113,-1000.0,0.00015641,2]
[334076421,1722738641123,-300.0,0.00015649,2]
[334076422,1722738641133,-1000.0,0.00015649,2]
[334076423,1722738641144,-1000.0,0.00015658,2]